bitfinex/quotes_SOLUSD_20230120
["timestamp","ask_amount","ask_price","bid_price","bid_amount"]
[1674246080125,4.14215,23.743,23.714,10.0]
[1674246080325,4.14215,23.743,23.715,49.59]
[1674246080537,4.14215,23.743,23.715,32.59]
[1674246080948,50.09576951,23.742,23.715,31.63]
[1674246081263,4.14215,23.741,23.716,10.0]
[1674246081701,26.35,23.74,23.716,10.0]
[1674246081912,24.14215,23.739,23.716,10.0]
[1674246082232,126.6,23.737,23.716,10.0]
[1674246082415,46.36,23.736,23.716,10.0]
[1674246082832,4.14215,23.737,23.716,9.5]
[1674246083264,4.14215,23.737,23.717,31.63]
[1674246083691,23.75576951,23.736,23.716,9.5]
[1674246083905,4.14215,23.735,23.716,9.5]
[1674246084307,4.14215,23.735,23.717,31.63]
[1674246084528,4.14215,23.735,23.718,10.0]
[1674246085699,26.36,23.743,23.718,10.0]
[1674246086106,50.11576951,23.743,23.718,10.0]
[1674246086522,50.11576951,23.743,23.719,0.96]
[1674246086523,26.36,23.743,23.719,0.96]
[1674246086729,26.35,23.749,23.719,20.96]
[1674246087075,4.14215,23.748,23.721,10.0]
[1674246087264,4.14215,23.748,23.722,69.58]
[1674246087463,4.14215,23.748,23.723,10.0]
[1674246087674,4.14215,23.748,23.724,31.62]
[1674246087883,4.14215,23.748,23.724,23.39614639]
[1674246088094,4.14215,23.748,23.725,10.0]
[1674246088300,24.01,23.74,23.725,23.39614639]
[1674246088527,30.51215,23.739,23.71,111.4015]
[1674246088739,4.14215,23.738,23.71,111.4015]
[1674246088950,4.14215,23.738,23.713,10.0]
[1674246089138,4.14215,23.738,23.714,31.63]
[1674246089139,17.0,23.737,23.714,31.63]
[1674246089357,17.0,23.737,23.713,10.0]
[1674246089358,43.38,23.737,23.713,10.0]
[1674246089566,67.13576951,23.737,23.713,10.0]
[1674246089774,17.0,23.737,23.713,10.0]
[1674246089998,26.37,23.742,23.713,10.0]
[1674246090315,17.0,23.741,23.713,10.0]
[1674246090524,4.14215,23.741,23.714,31.63]
[1674246090734,4.14215,23.741,23.715,20.0]
[1674246090948,4.14215,23.741,23.72,24.15]
[1674246091162,26.35,23.759,23.721,79.58]
[1674246091364,4.14215,23.758,23.722,43.11]
[1674246091572,4.14215,23.758,23.721,79.58]
[1674246091573,4.14215,23.758,23.724,43.11]
[1674246091891,4.14215,23.758,23.726,10.0]
[1674246092093,4.14215,23.758,23.727,69.57]
[1674246092305,4.14215,23.758,23.73,24.15]
[1674246092510,4.14215,23.758,23.731,49.57]
[1674246092848,4.14215,23.758,23.732,20.0]
[1674246093041,4.14215,23.758,23.733,49.57]
[1674246093235,4.14215,23.758,23.74,24.15]
[1674246093445,36.32,23.781,23.741,49.56]
[1674246093675,4.14215,23.78,23.742,20.0]
[1674246093995,26.36,23.779,23.743,32.55]
[1674246094187,4.14215,23.778,23.744,20.0]
[1674246094400,152.96,23.777,23.742,10.0]
[1674246094739,24.14215,23.776,23.744,10.0]
[1674246094924,30.50215,23.775,23.744,10.0]
[1674246095130,24.14215,23.774,23.745,31.59]
[1674246095452,113.971,23.782,23.745,31.59]
[1674246095453,30.51215,23.773,23.745,31.59]
[1674246095781,4.14215,23.772,23.745,31.59]
[1674246095975,4.14215,23.772,23.746,61.35614639]
[1674246096182,4.14215,23.772,23.747,41.59]
[1674246096513,4.14215,23.772,23.748,37.96]
[1674246096728,4.14215,23.772,23.749,41.59]
[1674246097058,4.14215,23.772,23.75,17.96]
[1674246097239,4.14215,23.772,23.751,51.58]
[1674246097458,4.14215,23.772,23.752,0.96]
[1674246097785,4.14215,23.772,23.754,10.0]
[1674246097964,4.14215,23.772,23.755,49.54]
[1674246098399,4.14215,23.772,23.756,10.0]
[1674246098600,4.14215,23.772,23.757,49.53]
[1674246098803,23.75576951,23.782,23.757,32.53]
[1674246099014,4.14215,23.781,23.758,27.0]
[1674246099248,4.14215,23.781,23.759,0.96]
[1674246099652,5e-05,23.781,23.76,78.91614639]
[1674246099861,20.0,23.798,23.761,17.96]
[1674246100084,26.36,23.797,23.762,41.57]
[1674246100286,20.0,23.796,23.763,20.96]
[1674246100490,20.0,23.796,23.764,48.57]
[1674246100706,20.0,23.796,23.765,0.96]
[1674246100931,20.0,23.796,23.766,31.56]
[1674246101135,26.36,23.796,23.767,27.96]
[1674246101333,26.35,23.801,23.768,31.56]
[1674246101546,20.0,23.8,23.769,17.96]
[1674246101765,26.36,23.799,23.769,24.35614639]
[1674246101990,20.0,23.798,23.77,50.75576951]
[1674246102194,26.36,23.797,23.771,20.96]
[1674246102420,26.35,23.806,23.772,48.55]
[1674246102612,26.35,23.806,23.773,0.96]
[1674246102816,26.35,23.814,23.774,31.55]
[1674246103137,33.75576951,23.813,23.775,27.96]
[1674246103334,29.52489,23.812,23.776,31.55]
[1674246103550,53.28065951,23.812,23.776,31.55]
[1674246103875,53.28065951,23.812,23.777,47.51153902]
[1674246103876,50.68642902,23.811,23.777,47.51153902]
[1674246104069,49.52489,23.81,23.778,10.0]
[1674246104283,3.17489,23.809,23.778,10.0]
[1674246104492,26.35,23.808,23.778,10.0]
[1674246104824,23.17489,23.807,23.778,10.0]
[1674246105025,39.53489,23.806,23.778,10.0]
[1674246105348,63.29065951,23.806,23.778,10.0]
[1674246105541,40.75576951,23.805,23.778,10.0]
[1674246105875,10.0,23.803,23.778,10.0]
[1674246106077,24.15,23.8,23.775,10.0]
[1674246106271,63.36,23.799,23.773,10.0]
[1674246106487,24.15,23.79,23.761,125.5563]
[1674246106702,46.37,23.789,23.761,125.5563]
[1674246106919,17.0,23.788,23.761,10.0]
[1674246107117,46.37,23.787,23.761,10.0]
[1674246107536,17.0,23.786,23.765,14.11496]
[1674246107757,26.37,23.785,23.765,14.11496]
[1674246107955,26.37,23.785,23.761,10.0]
[1674246107956,24.15,23.78,23.761,10.0]
[1674246108170,46.38,23.779,23.752,10.0]
[1674246108385,17.0,23.778,23.759,4.116]
[1674246108600,46.38,23.777,23.759,4.116]
[1674246108807,10.0,23.775,23.759,4.116]
[1674246109002,23.98,23.77,23.759,4.116]
[1674246109216,26.39,23.769,23.759,4.116]
[1674246109429,17.0,23.768,23.759,4.116]
[1674246109660,26.39,23.767,23.759,4.116]
[1674246109845,17.0,23.766,23.759,4.116]
[1674246110056,26.38,23.775,23.759,4.116]
[1674246110281,43.38,23.776,23.759,4.116]
[1674246111955,26.38,23.776,23.759,4.116]
[1674246112176,26.34,23.788,23.76,23.75576951]
[1674246112378,114.7525,23.793,23.76,23.75576951]
[1674246112379,20.0,23.787,23.761,4.11565]
[1674246112705,26.35,23.786,23.762,34.71576951]
[1674246112891,26.34,23.791,23.763,24.1153]
[1674246113105,26.34,23.792,23.764,4.11513]
[1674246113325,47.90576951,23.79,23.764,4.11513]
[1674246113538,24.01,23.78,23.764,4.11513]
[1674246113748,26.35,23.779,23.764,4.11513]
[1674246114186,20.0,23.778,23.764,4.11513]
[1674246114373,43.36,23.777,23.764,4.11513]
[1674246114590,26.36,23.777,23.764,4.11513]
[1674246114818,24.03,23.79,23.764,4.11513]
[1674246115027,26.35,23.789,23.764,4.11513]
[1674246115223,26.35,23.789,23.765,23.75576951]
[1674246115560,26.34,23.792,23.767,10.0]
[1674246115758,26.34,23.792,23.768,4.11444]
[1674246116694,20.0,23.791,23.768,4.11444]
[1674246117007,26.34,23.79,23.768,4.11444]
[1674246117212,20.0,23.789,23.768,4.11444]
[1674246117424,26.34,23.792,23.768,4.11444]
[1674246118064,114.7525,23.793,23.768,4.11444]
[1674246119116,50.11576951,23.792,23.768,4.11444]
[1674246119534,26.36,23.792,23.768,4.11444]
[1674246120388,23.75576951,23.791,23.768,4.11444]
[1674246120597,10.0,23.789,23.768,4.11444]
[1674246120823,26.36,23.788,23.768,4.11444]
[1674246121216,26.35,23.79,23.768,4.11444]
[1674246121432,17.0,23.789,23.768,4.11444]
[1674246121755,26.36,23.788,23.768,4.11444]
[1674246121964,26.35,23.792,23.768,4.11444]
[1674246122284,114.7525,23.793,23.768,27.87020951]
[1674246122482,26.34,23.799,23.768,27.87020951]
[1674246122683,26.34,23.799,23.769,30.0]
[1674246122895,26.34,23.803,23.77,49.52]
[1674246123097,26.34,23.803,23.771,20.0]
[1674246123315,26.34,23.803,23.772,32.51]
[1674246123523,26.34,23.803,23.774,10.0]
[1674246123725,26.33,23.809,23.775,32.51]
[1674246123957,26.33,23.809,23.775,56.26576951]
[1674246124178,26.33,23.809,23.776,23.75576951]
[1674246124364,26.33,23.809,23.777,31.55]
[1674246124594,20.0,23.808,23.778,10.0]
[1674246124922,26.36,23.807,23.778,10.0]
[1674246125131,152.96,23.807,23.778,10.0]
[1674246125335,10.0,23.806,23.778,10.0]
[1674246125665,10.0,23.799,23.774,10.0]
[1674246125869,63.37,23.798,23.774,10.0]
[1674246126062,24.15,23.79,23.774,10.0]
[1674246126386,43.38,23.789,23.774,10.0]
[1674246127447,26.38,23.789,23.774,10.0]
[1674246127636,26.35,23.797,23.774,10.0]
[1674246129545,24.15,23.79,23.774,10.0]
[1674246129740,46.36,23.789,23.764,10.0]
[1674246129953,24.15,23.78,23.764,10.0]
[1674246130179,43.36,23.779,23.764,10.0]
[1674246130385,30.0,23.778,23.749,15.22823864]
[1674246130602,43.36,23.777,23.749,15.22823864]
[1674246130921,53.36,23.777,23.749,15.22823864]
[1674246131313,43.36,23.777,23.749,15.22823864]
[1674246133438,10.0,23.776,23.749,15.22823864]
[1674246133647,43.36,23.775,23.749,15.22823864]
[1674246134374,10.0,23.774,23.749,15.22823864]
[1674246134600,24.15,23.77,23.74,10.0]
[1674246134805,24.15,23.76,23.74,10.0]
[1674246135130,43.37,23.759,23.74,10.0]
[1674246135332,17.0,23.759,23.74,10.0]
[1674246135761,26.37,23.758,23.74,10.0]
[1674246136169,20.0,23.757,23.74,10.0]
[1674246136375,43.36,23.756,23.731,118.8012]
[1674246136809,10.0,23.755,23.732,10.0]
[1674246137131,43.36,23.754,23.732,10.0]
[1674246137977,43.36,23.754,23.733,23.75576951]
[1674246137978,17.0,23.754,23.733,23.75576951]
[1674246138173,26.35,23.767,23.733,47.51153902]
[1674246138379,26.35,23.767,23.734,31.61]
[1674246138584,26.34,23.773,23.735,10.0]
[1674246138797,10.0,23.772,23.735,123.5589]
[1674246139107,24.15,23.77,23.735,147.31466951]
[1674246139329,24.03,23.76,23.735,10.0]
[1674246139525,56.37,23.759,23.735,10.0]
[1674246140156,17.0,23.758,23.735,10.0]
[1674246140367,46.37,23.757,23.735,10.0]
[1674246140598,17.0,23.756,23.735,10.0]
[1674246140791,26.37,23.755,23.735,10.0]
[1674246141001,17.0,23.754,23.735,10.0]
[1674246141215,26.37,23.758,23.735,10.0]
[1674246141428,20.0,23.757,23.735,10.0]
[1674246141624,26.37,23.756,23.735,10.0]
[1674246141837,26.35,23.769,23.736,23.75576951]
[1674246142041,10.0,23.768,23.738,10.0]
[1674246142268,26.35,23.767,23.738,10.0]
[1674246142487,26.35,23.767,23.739,24.71576951]
[1674246142677,26.35,23.767,23.739,138.63006951]
[1674246142889,26.35,23.769,23.74,23.75576951]
[1674246143093,26.35,23.769,23.741,0.96]
[1674246143431,26.35,23.769,23.742,33.75576951]
[1674246143639,26.34,23.778,23.743,20.0]
[1674246143858,10.0,23.776,23.744,10.0]
[1674246144043,26.34,23.775,23.744,10.0]
[1674246144252,26.34,23.778,23.745,0.96]
[1674246144485,26.32,23.789,23.746,31.59]
[1674246144794,26.32,23.789,23.746,55.34576951]
[1674246145015,147.13238522,23.789,23.747,23.75576951]
[1674246145197,24.15,23.78,23.745,41.59]
[1674246145416,36.36,23.779,23.745,10.0]
[1674246145954,20.0,23.778,23.746,23.75576951]
[1674246146262,26.36,23.777,23.746,23.75576951]
[1674246146475,26.36,23.777,23.747,10.96]
[1674246146693,26.36,23.777,23.747,27.96]
[1674246146874,26.36,23.777,23.749,10.0]
[1674246147096,26.36,23.777,23.75,0.96]
[1674246147432,26.36,23.777,23.75,23.75576951]
[1674246147653,26.36,23.777,23.749,10.0]
[1674246148178,37.0,23.776,23.749,10.0]
[1674246148485,26.36,23.775,23.749,10.0]
[1674246148693,17.0,23.774,23.75,23.75576951]
[1674246148883,26.36,23.773,23.75,23.75576951]
[1674246149091,17.0,23.772,23.751,10.0]
[1674246149318,26.35,23.777,23.751,10.0]
[1674246149522,26.35,23.777,23.752,23.75576951]
[1674246149737,26.35,23.777,23.751,10.0]
[1674246150259,10.0,23.776,23.751,10.0]
[1674246150462,26.36,23.775,23.751,10.0]
[1674246150681,17.0,23.775,23.751,10.0]
[1674246150890,26.36,23.774,23.751,9.5]
[1674246151104,17.0,23.773,23.751,9.5]
[1674246151310,26.36,23.772,23.751,9.5]
[1674246151639,17.0,23.771,23.751,9.5]
[1674246151963,20.0,23.778,23.752,23.75576951]
[1674246151964,26.35,23.777,23.752,23.75576951]
[1674246152272,20.0,23.778,23.753,10.0]
[1674246152475,26.35,23.777,23.753,10.0]
[1674246152668,26.35,23.777,23.754,43.75576951]
[1674246152874,26.34,23.788,23.755,49.54]
[1674246153087,26.34,23.789,23.755,73.29576951]
[1674246153322,26.34,23.789,23.756,33.75576951]
[1674246153528,26.34,23.789,23.756,10.0]
[1674246153844,152.94,23.789,23.757,23.75576951]
[1674246154059,153.6,23.788,23.756,10.0]
[1674246154273,152.96,23.787,23.756,10.0]
[1674246154603,24.15,23.78,23.756,10.0]
[1674246154777,43.36,23.779,23.756,10.0]
[1674246154983,169.96,23.779,23.756,10.0]
[1674246155213,43.36,23.779,23.756,10.0]
[1674246155718,20.0,23.778,23.756,10.0]
[1674246155928,43.37,23.777,23.756,10.0]
[1674246156134,169.97,23.777,23.756,10.0]
[1674246156349,20.0,23.776,23.756,10.0]
[1674246156576,43.37,23.775,23.756,10.0]
[1674246157211,17.0,23.775,23.756,10.0]
[1674246157419,26.35,23.774,23.756,10.0]
[1674246157629,26.35,23.779,23.756,33.75576951]
[1674246157813,26.34,23.789,23.756,65.33576951]
[1674246158023,26.34,23.789,23.757,158.44936951]
[1674246158257,26.33,23.792,23.758,58.57]
[1674246158461,26.33,23.792,23.759,20.96]
[1674246158657,26.33,23.792,23.76,48.57]
[1674246158870,26.33,23.792,23.761,20.96]
[1674246159080,26.33,23.792,23.762,48.57]
[1674246159295,26.32,23.799,23.763,20.96]
[1674246159515,26.32,23.799,23.764,58.57]
[1674246159733,26.32,23.799,23.765,0.96]
[1674246159931,26.35,23.803,23.766,31.56]
[1674246160136,26.35,23.803,23.767,0.96]
[1674246160361,26.35,23.803,23.768,41.56]
[1674246160575,26.35,23.803,23.769,0.96]
[1674246160891,26.35,23.803,23.77,23.75576951]
[1674246161115,26.35,23.803,23.771,52.52]
[1674246161423,26.35,23.803,23.772,10.0]
[1674246161637,26.35,23.803,23.773,0.96]
[1674246161823,26.35,23.803,23.773,61.71576951]
[1674246162039,26.35,23.803,23.774,10.0]
[1674246162258,26.35,23.803,23.775,0.96]
[1674246162578,26.35,23.803,23.775,24.71576951]
[1674246162977,26.35,23.803,23.774,10.0]
[1674246163186,17.0,23.802,23.774,10.0]
[1674246163397,36.36,23.801,23.774,10.0]
[1674246163607,17.0,23.8,23.774,10.0]
[1674246163825,36.36,23.799,23.774,10.0]
[1674246164144,17.0,23.798,23.774,10.0]
[1674246164348,36.36,23.797,23.774,10.0]
[1674246164557,17.0,23.796,23.774,10.0]
[1674246164774,26.37,23.795,23.774,10.0]
[1674246164972,17.0,23.794,23.772,10.0]
[1674246165186,24.15,23.79,23.772,10.0]
[1674246165403,26.36,23.796,23.772,10.0]
[1674246165625,26.36,23.797,23.772,10.0]
[1674246166453,26.36,23.797,23.772,33.75576951]
[1674246166663,26.36,23.797,23.772,10.0]
[1674246166883,10.0,23.796,23.772,10.0]
[1674246167092,26.36,23.795,23.772,10.0]
[1674246167504,17.0,23.794,23.772,10.0]
[1674246167715,26.36,23.793,23.772,10.0]
[1674246167926,26.36,23.794,23.773,23.75576951]
[1674246168140,26.36,23.797,23.774,10.0]
[1674246169085,20.0,23.798,23.774,10.0]
[1674246169294,26.36,23.797,23.775,23.75576951]
[1674246169502,26.35,23.803,23.776,17.0]
[1674246169706,26.34,23.809,23.776,49.51]
[1674246169917,26.34,23.814,23.777,23.75576951]
[1674246170129,50.09576951,23.814,23.778,0.96]
[1674246170453,33.75576951,23.813,23.778,10.0]
[1674246170669,46.34,23.812,23.778,10.0]
[1674246170860,152.94,23.812,23.778,10.0]
[1674246171073,150.75,23.81,23.778,10.0]
[1674246171288,24.03,23.8,23.778,10.0]
[1674246171493,24.03,23.8,23.769,10.0]
[1674246171494,26.36,23.799,23.769,10.0]
[1674246171919,27.0,23.798,23.769,10.0]
[1674246172137,46.35,23.797,23.769,10.0]
[1674246172353,17.0,23.796,23.769,10.0]
[1674246172563,26.35,23.795,23.769,10.0]
[1674246172882,26.35,23.795,23.772,23.75576951]
[1674246173086,17.0,23.794,23.773,10.0]
[1674246173501,17.0,23.795,23.773,10.0]
[1674246173725,26.36,23.794,23.773,10.0]
[1674246174251,20.0,23.797,23.773,10.0]
[1674246174439,20.0,23.798,23.774,23.75576951]
[1674246174648,26.35,23.797,23.775,10.96]
[1674246174859,26.35,23.808,23.775,10.96]
[1674246175091,10.0,23.807,23.776,17.0]
[1674246175281,23.75576951,23.803,23.775,33.75576951]
[1674246175492,36.35,23.802,23.776,0.96]
[1674246175718,26.35,23.802,23.776,0.96]
[1674246175925,26.35,23.802,23.776,17.96]
[1674246176135,26.35,23.808,23.777,10.0]
[1674246176543,23.75576951,23.801,23.777,10.0]
[1674246176882,50.10576951,23.808,23.777,10.0]
[1674246177191,26.35,23.808,23.779,10.0]
[1674246177499,26.34,23.812,23.78,0.96]
[1674246177714,26.34,23.812,23.78,24.71576951]
[1674246177914,10.0,23.811,23.781,10.0]
[1674246178114,26.35,23.81,23.781,10.0]
[1674246178321,6.026108,23.797,23.781,10.0]
[1674246179805,6.026108,23.797,23.781,33.75576951]
[1674246180015,6.026108,23.797,23.781,10.0]
[1674246180880,23.75576951,23.796,23.776,10.0]
[1674246181082,36.37,23.795,23.776,10.0]
[1674246181272,53.37,23.795,23.769,10.0]
[1674246181489,23.75576951,23.794,23.769,10.0]
[1674246181800,43.37,23.793,23.769,10.0]
[1674246182005,43.37,23.793,23.771,10.0]
[1674246182448,26.37,23.793,23.773,10.0]
[1674246182648,26.37,23.796,23.773,10.0]
[1674246182855,26.37,23.796,23.771,10.0]
[1674246183070,24.01,23.79,23.752,111.476]
[1674246183268,46.38,23.789,23.752,111.476]
[1674246183480,134.68174413,23.789,23.752,111.476]
[1674246183694,55.44050193,23.788,23.752,111.476]
[1674246184013,10.0,23.786,23.752,111.476]
[1674246184228,63.35,23.785,23.752,111.476]
[1674246184444,70.10576951,23.785,23.752,111.476]
[1674246184682,40.75576951,23.784,23.752,111.476]
[1674246184865,46.36,23.783,23.752,111.476]
[1674246185186,17.0,23.782,23.752,111.476]
[1674246185382,26.36,23.781,23.752,111.476]
[1674246185909,26.35,23.785,23.757,31.57]
[1674246186122,20.0,23.784,23.757,31.57]
[1674246186322,20.0,23.784,23.753,41.58]
[1674246186535,26.35,23.785,23.753,41.58]
[1674246186861,26.35,23.799,23.76,10.0]
[1674246187052,26.35,23.799,23.761,51.57]
[1674246187383,26.36,23.796,23.762,10.0]
[1674246187590,26.36,23.796,23.763,31.57]
[1674246187783,26.36,23.796,23.764,20.0]
[1674246188004,26.36,23.796,23.765,10.0]
[1674246188216,10.0,23.795,23.765,10.0]
[1674246188436,46.36,23.794,23.765,10.0]
[1674246188865,46.36,23.794,23.767,10.0]
[1674246189260,20.0,23.794,23.767,10.0]
[1674246189466,26.36,23.796,23.768,23.75576951]
[1674246189695,6.026108,23.797,23.77,10.0]
[1674246190006,24.15,23.79,23.76,10.0]
[1674246190333,46.37,23.789,23.76,10.0]
[1674246190729,17.0,23.788,23.76,10.0]
[1674246190942,46.37,23.787,23.76,33.75576951]
[1674246191155,46.37,23.787,23.762,33.75576951]
[1674246191156,17.0,23.786,23.762,33.75576951]
[1674246191372,46.37,23.785,23.762,33.75576951]
[1674246191588,17.0,23.784,23.762,33.75576951]
[1674246191789,26.38,23.783,23.763,10.0]
[1674246191989,20.0,23.785,23.763,33.75576951]
[1674246192209,20.0,23.793,23.764,23.75576951]
[1674246192537,26.37,23.792,23.764,23.75576951]
[1674246192749,126.6,23.799,23.764,23.75576951]
[1674246192750,20.0,23.791,23.765,10.0]
[1674246192969,26.35,23.79,23.765,10.0]
[1674246193178,26.35,23.79,23.766,23.75576951]
[1674246193179,20.0,23.789,23.766,23.75576951]
[1674246193491,26.35,23.796,23.767,10.0]
[1674246193713,20.0,23.795,23.767,10.0]
[1674246193923,26.35,23.794,23.768,23.75576951]
[1674246194622,26.35,23.794,23.765,10.0]
[1674246194854,10.0,23.792,23.765,10.0]
[1674246195046,46.35,23.791,23.765,10.0]
[1674246195256,70.10576951,23.791,23.765,10.0]
[1674246195466,10.0,23.789,23.765,10.0]
[1674246195679,46.36,23.788,23.765,10.0]
[1674246195893,17.0,23.787,23.765,10.0]
[1674246196114,46.36,23.786,23.763,10.0]
[1674246196328,17.0,23.785,23.763,10.0]
[1674246196519,46.36,23.784,23.763,10.0]
[1674246196730,17.0,23.783,23.763,10.0]
[1674246196936,26.36,23.782,23.763,10.0]
[1674246197360,20.0,23.784,23.763,10.0]
[1674246197361,26.36,23.783,23.763,10.0]
[1674246198200,26.35,23.791,23.764,20.0]
[1674246198414,26.35,23.791,23.763,10.0]
[1674246198415,23.75576951,23.792,23.765,10.0]
[1674246198622,46.35,23.791,23.765,10.0]
[1674246198840,26.35,23.791,23.765,10.0]
[1674246199063,26.35,23.796,23.766,31.56]
[1674246199271,26.35,23.796,23.766,110.9394]
[1674246199472,20.0,23.795,23.766,110.9394]
[1674246199681,26.35,23.794,23.767,10.0]
[1674246200314,29.78187751,23.797,23.768,24.71576951]
[1674246200315,26.35,23.796,23.768,24.71576951]
[1674246200527,6.026108,23.797,23.769,17.0]
[1674246200723,6.026108,23.797,23.771,10.0]
[1674246200939,6.026108,23.797,23.772,17.0]
[1674246201254,6.026108,23.797,23.774,10.0]
[1674246201768,56.36,23.796,23.771,10.0]
[1674246202296,10.0,23.795,23.771,10.0]
[1674246202627,46.36,23.794,23.771,10.0]
[1674246202841,17.0,23.793,23.771,10.0]
[1674246203032,26.37,23.792,23.771,10.0]
[1674246203247,17.0,23.791,23.771,10.0]
[1674246203975,26.37,23.793,23.771,10.0]
[1674246204181,26.35,23.803,23.772,23.75576951]
[1674246204633,26.35,23.803,23.774,10.0]
[1674246204940,10.0,23.802,23.774,10.0]
[1674246205151,26.36,23.801,23.774,10.0]
[1674246205765,10.0,23.8,23.774,10.0]
[1674246205990,26.36,23.796,23.774,10.0]
[1674246206298,20.0,23.795,23.774,10.0]
[1674246206512,26.37,23.794,23.774,10.0]
[1674246206731,37.0,23.793,23.774,10.0]
[1674246207460,26.37,23.792,23.774,10.0]
[1674246207664,37.0,23.793,23.774,10.0]
[1674246207871,17.0,23.793,23.774,10.0]
[1674246208197,20.0,23.792,23.766,33.75576951]
[1674246208415,43.36,23.791,23.766,10.0]
[1674246208721,10.0,23.789,23.766,10.0]
[1674246208934,43.37,23.788,23.766,10.0]
[1674246209145,20.0,23.787,23.766,10.0]
[1674246209460,26.36,23.796,23.768,23.75576951]
[1674246209780,17.0,23.786,23.769,10.0]
[1674246209985,26.37,23.785,23.769,10.0]
[1674246210305,17.0,23.786,23.769,10.0]
[1674246210703,46.37,23.785,23.766,10.0]
[1674246210915,17.0,23.784,23.766,10.0]
[1674246211238,46.36,23.783,23.766,10.0]
[1674246211440,20.0,23.783,23.766,10.0]
[1674246211647,10.0,23.795,23.766,10.0]
[1674246211648,26.35,23.792,23.766,10.0]
[1674246211981,26.34,23.794,23.766,10.0]
[1674246212294,26.34,23.796,23.768,31.56]
[1674246212695,26.34,23.796,23.769,10.0]
[1674246213228,20.0,23.795,23.769,10.0]
[1674246213759,36.34,23.794,23.769,10.0]
[1674246213955,20.0,23.793,23.769,10.0]
[1674246214164,26.36,23.792,23.769,10.0]
[1674246214800,46.36,23.793,23.769,10.0]
[1674246215447,46.36,23.793,23.767,10.0]
[1674246215448,23.75576951,23.792,23.767,10.0]
[1674246215655,10.0,23.79,23.767,10.0]
[1674246215847,46.36,23.789,23.767,10.0]
[1674246216058,17.0,23.788,23.767,10.0]
[1674246216265,46.36,23.787,23.767,10.0]
[1674246216589,17.0,23.786,23.767,10.0]
[1674246217136,26.36,23.789,23.767,10.0]